bitfinex-derivatives/quotes_ETHF0:USTF0_20230701
["timestamp","ask_amount","ask_price","bid_price","bid_amount"]
[1688169601550,0.78309214,1935.1,1935.0,0.31014]
[1688169602449,1.20214835,1935.1,1935.0,0.31014]
[1688169604450,1.20214835,1935.1,1935.0,0.59685635]
[1688169604847,1.20214835,1935.1,1934.9,0.77535]
[1688169605151,1.20214835,1935.1,1935.0,0.31014]
[1688169606146,6.31704835,1935.1,1935.0,0.31014]
[1688169607159,1.20214835,1935.1,1935.0,0.31014]
[1688169607355,1.20214835,1935.1,1935.0,0.59685635]
[1688169607854,1.20214835,1935.1,1934.9,1.34283412]
[1688169608047,1.20214835,1935.1,1935.0,0.31014]
[1688169608544,1.20214835,1935.1,1935.0,0.59685635]
[1688169610947,1.20214835,1935.1,1935.0,0.31014]
[1688169611149,1.20214835,1935.1,1935.0,0.59685635]
[1688169611545,1.20214835,1935.1,1935.0,0.31014]
[1688169612352,1.20214835,1935.1,1935.0,0.59685635]
[1688169612857,0.00775214,1935.1,1935.0,0.69985635]
[1688169613744,0.00775214,1935.1,1935.0,5.72325635]
[1688169614458,0.00775214,1935.1,1935.0,10.53385635]
[1688169616550,0.31788214,1935.1,1935.0,5.62025635]
[1688169617446,0.00775214,1935.1,1935.0,5.62025635]
[1688169620456,0.00775214,1935.1,1935.0,5.72325635]
[1688169621058,0.00775214,1935.1,1935.0,8.93105635]
[1688169626360,0.40798394,1935.4,1935.1,0.56748412]
[1688169626562,5.6357,1935.7,1935.3,3.2078]
[1688169626763,5.6357,1935.7,1935.4,0.31008]
[1688169626964,0.07568637,1935.6,1935.5,0.28671635]
[1688169627165,0.07568637,1935.6,1935.5,1.06183635]
[1688169637776,0.07568637,1935.6,1935.5,4.26963635]
[1688169638174,0.41841522,1935.7,1935.5,4.26963635]
[1688169638571,0.08066741,1935.6,1935.5,4.26963635]
[1688169639072,0.08066741,1935.6,1935.5,4.83712047]
[1688169641178,0.19336438,1935.6,1935.5,4.83712047]
[1688169643280,0.19336438,1935.6,1935.5,4.94012047]
[1688169643877,0.27119357,1935.6,1935.5,4.94012047]
[1688169645777,0.27119357,1935.6,1935.5,5.35572822]
[1688169646177,0.00774974,1935.7,1935.5,10.00772822]
[1688169646378,0.00774974,1935.7,1935.6,4.637]
[1688169646580,0.00774974,1935.7,1935.6,4.94705]
[1688169648581,0.93089681,1936.1,1935.6,4.94705]
[1688169648582,0.77485,1936.6,1935.9,0.103]
[1688169648771,4.8178,1936.4,1936.3,3.51774]
[1688169648971,4.8178,1936.4,1936.3,8.16974]
[1688169649175,4.8178,1936.4,1936.3,9.02394047]
[1688169651785,4.8178,1936.4,1936.3,4.96194]
[1688169652279,4.8178,1936.4,1936.3,5.23365635]
[1688169654191,4.8178,1936.4,1936.3,4.94694]
[1688169654375,8.33552,1936.4,1936.3,4.94694]
[1688169655483,8.0256,1936.4,1936.3,5.23365635]
[1688169655683,5.23011803,1936.4,1936.3,5.23365635]
[1688169659886,5.23011803,1936.4,1936.3,4.94694]
[1688169660383,5.23011803,1936.4,1936.3,5.23365635]
[1688169662479,10.18703803,1936.4,1936.3,0.30994]
[1688169662679,13.36883803,1936.4,1936.2,0.78259653]
[1688169662988,4.95694,1936.3,1936.2,0.78259653]
[1688169663177,5.26220201,1936.3,1936.2,0.78259653]
[1688169663381,5.26220201,1936.3,1936.2,0.47449653]
[1688169663688,5.26220201,1936.3,1936.0,1.03314]
[1688169663883,7.8408,1936.1,1936.0,1.03314]
[1688169664190,8.45607728,1936.1,1935.7,0.30999]
[1688169664381,8.13882,1935.8,1935.7,0.30999]
[1688169664783,8.30060046,1935.8,1935.7,0.30999]
[1688169664984,0.16178046,1935.8,1935.7,0.59670635]
[1688169665183,0.31002,1935.8,1935.7,0.59670635]
[1688169665386,0.50775649,1935.8,1935.7,0.59670635]
[1688169665586,0.50775649,1935.8,1935.7,0.30999]
[1688169665793,0.50775649,1935.8,1935.7,0.59670635]
[1688169666988,0.19773649,1935.8,1935.7,0.59670635]
[1688169667194,0.77507,1935.9,1935.7,5.24870635]
[1688169667385,0.24566572,1935.8,1935.7,5.24870635]
[1688169667786,0.77507,1935.9,1935.7,5.24870635]
[1688169668083,0.24568324,1935.8,1935.7,5.24870635]
[1688169668489,0.77507,1935.9,1935.7,5.24870635]
[1688169668792,0.21703237,1935.8,1935.7,5.24870635]
[1688169669193,0.77507,1935.9,1935.7,5.24870635]
[1688169669392,0.22181349,1935.8,1935.7,5.24870635]
[1688169669690,0.77507,1935.9,1935.7,3.85370635]
[1688169669891,0.22183111,1935.8,1935.7,3.85370635]
[1688169670286,0.77507,1935.9,1935.7,3.85370635]
[1688169670590,0.53186869,1935.8,1935.7,3.85370635]
[1688169671389,0.53186869,1935.8,1935.7,3.56699]
[1688169671692,0.22184869,1935.8,1935.7,3.85370635]
[1688169671991,3.61714722,1936.0,1935.7,3.85370635]
[1688169672191,0.40934722,1936.0,1935.9,3.257]
[1688169672393,0.40934722,1936.0,1935.9,3.56701]
[1688169672698,4.7511,1936.1,1935.9,3.85372635]
[1688169674895,5.48497388,1936.1,1935.9,3.85372635]
[1688169675397,5.17499388,1936.1,1935.9,3.85372635]
[1688169675600,5.48498388,1936.1,1935.9,3.85372635]
[1688169676097,0.42389388,1936.1,1935.9,3.95672635]
[1688169676398,0.30998,1936.1,1935.9,3.95672635]
[1688169679501,3.2078,1936.0,1935.9,3.56701]
[1688169679695,3.5178,1936.0,1935.9,0.31001]
[1688169682303,6.7748,1936.0,1935.9,0.59672635]
[1688169682805,6.7748,1936.0,1935.9,0.31001]
[1688169684904,6.4648,1936.0,1935.9,0.31001]
[1688169685102,6.77481,1936.0,1935.9,0.31001]
[1688169685906,7.03307513,1936.0,1935.9,0.31001]
[1688169689309,7.44041628,1936.0,1935.9,0.31001]
[1688169690108,7.43441628,1936.0,1935.7,0.31005]
[1688169690305,6.77084,1935.8,1935.7,0.31005]
[1688169690604,7.02649673,1935.8,1935.7,0.31005]
[1688169691803,7.02649673,1935.8,1935.6,0.00774893]
[1688169691997,3.56106,1935.7,1935.6,0.00774893]
[1688169692198,3.64905582,1935.7,1935.6,0.00774893]
[1688169692605,3.64905582,1935.7,1935.6,0.31780893]
[1688169696714,3.64905582,1935.7,1935.6,0.00774893]
[1688169698306,8.64905582,1935.7,1935.6,0.00774893]
[1688169698512,14.47855757,1935.7,1935.6,0.00774893]
[1688169706823,5.0,1935.3,1934.8,0.7754]
[1688169707129,6.4588,1934.9,1934.8,0.7754]
[1688169707329,6.76898,1934.9,1934.8,0.7754]
[1688169709132,6.4588,1934.9,1934.8,1.16511635]
[1688169709320,3.51797,1934.9,1934.8,1.16511635]
[1688169709731,6.77497,1934.9,1934.8,1.16511635]
[1688169710327,0.00775254,1935.0,1934.9,0.41317]
[1688169710534,0.00775254,1935.0,1934.9,0.98065412]
[1688169711324,0.31791254,1935.0,1934.9,0.31017]
[1688169711524,3.56891254,1935.0,1934.9,0.31017]
[1688169712235,3.56891254,1935.0,1934.9,0.59688635]
[1688169712636,3.25875254,1935.0,1934.9,0.59688635]
[1688169713537,3.25875254,1935.0,1934.9,0.69988635]
[1688169714240,3.56891254,1935.0,1934.9,0.69988635]
[1688169714429,3.56891254,1935.0,1934.9,0.41317]
[1688169716335,3.56891254,1935.0,1934.9,0.69988635]
[1688169717332,3.56891254,1935.0,1934.9,0.41317]
[1688169720343,3.56891254,1935.0,1934.9,0.69988635]
[1688169721643,0.00775254,1935.0,1934.9,3.94988635]
[1688169725538,0.00775254,1935.0,1934.9,3.95688635]
[1688169725739,0.12165323,1935.0,1934.9,3.95688635]
[1688169725941,3.2078,1935.3,1934.9,3.95688635]
[1688169726142,3.2078,1935.3,1935.2,3.56713]
[1688169726345,3.51791,1935.3,1935.2,3.56713]
[1688169726543,0.31011,1935.3,1935.2,4.42133047]
[1688169726739,0.31011,1935.3,1935.2,1.16433047]
[1688169726941,6.76891,1935.3,1935.1,0.77532]
[1688169727239,6.76891,1935.3,1935.2,0.31013]
[1688169727240,3.51791,1935.3,1935.2,0.31013]
[1688169727441,6.76891,1935.3,1935.2,0.31013]
[1688169727834,6.77591,1935.3,1935.2,0.31013]
[1688169729043,6.4658,1935.3,1935.2,0.59684635]
[1688169729248,3.258,1935.3,1935.2,0.59684635]
[1688169730549,3.32782881,1935.3,1935.2,0.59684635]
[1688169731757,3.63792881,1935.3,1935.2,0.59684635]
[1688169732052,0.37992881,1935.3,1935.2,0.59684635]
[1688169732851,0.06982881,1935.3,1935.2,0.69984635]
[1688169733051,0.06982881,1935.3,1935.2,3.95784635]
[1688169733247,0.00775094,1935.4,1935.2,3.95784635]
[1688169733444,0.00775094,1935.4,1935.3,13.75418412]
[1688169733748,0.00775094,1935.4,1935.3,14.06428412]
[1688169733950,0.00775094,1935.4,1935.3,14.16728412]
[1688169738656,1.34016113,1936.0,1935.8,0.103]
[1688169738957,6.4658,1936.2,1935.9,4.23348412]
[1688169739151,6.77575,1936.2,1935.9,4.23348412]
[1688169739358,7.19444607,1936.2,1935.9,4.23348412]
[1688169739660,6.78349773,1936.2,1936.1,0.30997]
[1688169739847,6.47354773,1936.2,1936.1,0.30997]
[1688169740049,0.00774773,1936.2,1936.1,4.13545412]
[1688169745560,0.33713633,1936.2,1936.1,4.13545412]
[1688169745760,0.00774773,1936.2,1936.1,4.13545412]
[1688169745964,0.3371559,1936.2,1936.1,4.13545412]
[1688169748259,0.3371559,1936.2,1936.1,0.87745412]
[1688169748468,0.3371559,1936.2,1936.1,1.29682294]
[1688169749560,0.3371559,1936.2,1936.1,7.76262294]
[1688169750662,4.7958,1936.6,1936.1,7.86562294]
[1688169750867,3.258,1936.7,1936.4,3.258]
[1688169751068,0.23311183,1936.5,1936.4,4.03276]
[1688169751264,3.258,1936.7,1936.4,4.03276]
[1688169751265,3.56788,1936.7,1936.4,4.03276]
[1688169751458,0.23312982,1936.5,1936.4,4.03276]
[1688169751660,0.00774613,1936.6,1936.4,4.03276]
[1688169752065,0.00774613,1936.6,1936.5,0.85420047]
[1688169752267,0.00774613,1936.6,1936.5,1.16410047]
[1688169753870,0.00774613,1936.6,1936.5,4.42210047]
[1688169754560,0.26291636,1936.6,1936.5,1.16410047]
[1688169754765,3.57562613,1936.6,1936.5,0.3099]
[1688169754971,3.83081426,1936.6,1936.5,0.3099]
[1688169756272,7.03861426,1936.6,1936.5,0.3099]
[1688169756470,7.03861426,1936.6,1936.4,0.77476]
[1688169756768,3.258,1936.5,1936.3,0.30992]
[1688169756975,6.77572,1936.4,1936.3,0.30992]
[1688169757173,7.03098894,1936.4,1936.3,0.30992]
[1688169757675,6.72106894,1936.4,1935.9,3.26574773]
[1688169757974,3.2078,1936.1,1935.9,3.26574773]
[1688169758175,3.2078,1936.1,1936.0,0.28671635]
[1688169758471,3.2078,1936.1,1935.9,3.26574773]
[1688169758868,3.2078,1936.1,1935.9,3.55246408]
[1688169763673,8.1704,1936.2,1935.9,3.55246408]
[1688169764677,3.258,1936.1,1935.9,0.00774773]
[1688169765273,3.258,1936.1,1936.0,0.103]
[1688169765479,8.3792,1936.3,1935.9,3.55246408]
[1688169766266,11.587,1936.3,1935.9,3.55246408]
[1688169768773,12.51729557,1936.3,1935.9,3.55246408]
[1688169769171,6.4658,1936.0,1935.9,0.00774773]
[1688169769880,16.3942,1936.0,1935.9,0.00774773]
[1688169774785,17.32448367,1936.0,1935.9,0.00774773]
[1688169775480,16.48659361,1936.0,1935.9,0.00774773]
[1688169776082,19.74459361,1936.0,1935.9,0.00774773]
[1688169776386,20.67487728,1936.0,1935.9,0.00774773]
[1688169778390,27.40181191,1936.0,1935.9,0.00774773]
[1688169778993,20.67487728,1936.0,1935.9,0.00774773]
[1688169779583,27.40181191,1936.0,1935.9,0.00774773]
[1688169782081,24.14381191,1936.0,1935.9,0.00774773]
[1688169785503,24.14381191,1936.0,1935.9,0.29446408]
[1688169785791,4.28067728,1936.0,1935.9,0.29446408]
[1688169785986,0.09239361,1936.0,1935.9,3.55246408]
[1688169786186,0.09239361,1936.0,1935.9,3.65546408]
[1688169786391,13.19273463,1936.2,1935.9,6.91346408]
[1688169786392,6.72693463,1936.2,1935.9,6.91346408]
[1688169786592,6.72693463,1936.4,1936.1,3.253]
[1688169786791,6.72693463,1936.4,1936.2,3.54471635]
[1688169786997,6.72693463,1936.4,1936.3,0.56748412]
[1688169787190,10.9152183,1936.5,1936.3,0.85420047]
[1688169787693,11.6900383,1936.5,1936.3,1.16414047]
[1688169787891,11.6900383,1936.5,1936.3,5.93754047]
[1688169794204,0.46103936,1936.4,1936.3,5.93754047]
[1688169794898,0.46103936,1936.4,1936.3,5.37005635]
[1688169797001,3.66883936,1936.4,1936.3,5.37005635]
[1688169797203,4.59912303,1936.4,1936.3,5.37005635]
[1688169798001,1.39132303,1936.4,1936.3,5.37005635]
[1688169798206,0.46103936,1936.4,1936.3,5.37005635]
[1688169800202,0.46103936,1936.4,1936.3,5.47305635]
[1688169800804,6.92683936,1936.4,1936.0,0.30997]
[1688169801009,0.30998,1936.0,1935.9,0.00774773]
[1688169801207,6.77578,1936.0,1935.9,0.00774773]
[1688169802011,3.51778,1936.0,1935.9,0.60447408]
[1688169802214,3.51778,1936.0,1935.9,3.86247408]
[1688169802705,3.58085764,1936.0,1935.9,3.86247408]
[1688169803099,3.5975729,1936.0,1935.9,3.86247408]
[1688169804011,0.3897729,1936.0,1935.9,3.86247408]
[1688169804714,3.5975729,1936.0,1935.9,3.86247408]
[1688169804908,6.8555729,1936.0,1935.9,0.00774773]
[1688169805208,13.50271463,1936.0,1935.9,0.00774773]
[1688169805415,18.70621463,1936.0,1935.9,0.00774773]
[1688169805599,19.6364983,1936.0,1935.9,0.00774773]
[1688169806814,12.90956367,1936.0,1935.9,0.00774773]
[1688169807009,11.97928,1936.0,1935.9,0.00774773]
[1688169807210,17.11988,1936.0,1935.9,0.00774773]
[1688169807405,18.05016367,1936.0,1935.9,0.00774773]
[1688169811613,18.05016367,1936.0,1935.9,0.29446408]
[1688169811911,16.41316149,1936.0,1935.9,0.60447408]
[1688169812218,11.20966149,1936.0,1935.9,3.86247408]
[1688169812420,10.27937782,1936.0,1935.9,3.86247408]
[1688169812708,10.03148613,1936.0,1935.9,3.96547408]
[1688169813012,0.08599815,1936.0,1935.9,3.96547408]
[1688169813213,10.68569726,1936.2,1935.9,3.96547408]
[1688169813413,10.68569726,1936.2,1936.0,3.82548412]
[1688169813615,10.68569726,1936.2,1936.1,0.59669635]
[1688169815813,7.53652782,1936.3,1936.1,3.95769635]
[1688169816022,7.53652782,1936.3,1936.2,0.56748412]
[1688169816215,1.18969351,1936.3,1936.2,0.87744412]
[1688169816407,0.77493,1936.3,1936.2,0.87744412]
[1688169820313,4.03293,1936.3,1936.0,0.77495]
[1688169820519,3.258,1936.1,1936.0,0.77495]
[1688169820713,3.258,1936.1,1936.0,0.30999]
[1688169820714,3.56798,1936.1,1936.0,0.30999]
[1688169823622,4.49826367,1936.1,1936.0,0.30999]
[1688169823821,4.49826367,1936.1,1935.9,4.04074773]
[1688169824128,6.4658,1936.0,1935.9,0.00774773]
[1688169824320,6.77579,1936.0,1935.9,0.31775773]
[1688169826429,6.77579,1936.0,1935.9,0.38371877]
[1688169827323,6.77579,1936.0,1935.9,0.07370877]
[1688169828026,13.53738782,1936.0,1935.9,0.07370877]
[1688169828626,13.53738782,1936.0,1935.9,0.14785291]
[1688169828930,13.53738782,1936.0,1935.9,0.00774773]
[1688169830224,6.77579,1936.0,1935.9,0.00774773]
[1688169831733,13.53921576,1936.0,1935.9,0.00774773]
[1688169832132,16.79721576,1936.0,1935.9,0.00774773]
[1688169832328,17.72751156,1936.0,1935.9,0.00774773]
[1688169835527,17.72751156,1936.0,1935.9,0.13853844]
[1688169839642,10.96407367,1936.0,1935.9,0.13853844]
[1688169839830,10.03379,1936.0,1935.9,0.13853844]
[1688169840333,16.79871164,1936.0,1935.9,0.13853844]
[1688169840534,17.72899531,1936.0,1935.9,0.13853844]
[1688169840739,10.96407367,1936.0,1935.9,0.13853844]
[1688169841038,10.03379,1936.0,1935.9,0.73526479]
[1688169841238,16.79930826,1936.0,1935.9,0.73526479]
[1688169841441,11.21359193,1936.0,1935.9,0.73526479]
[1688169841638,10.28330826,1936.0,1935.9,0.73526479]
[1688169841828,10.28330826,1936.0,1935.9,0.68695311]
[1688169844037,10.28330826,1936.0,1935.9,0.60447408]
[1688169845337,10.28330826,1936.0,1935.9,0.67202769]
[1688169845548,10.28330826,1936.0,1935.9,0.60447408]
[1688169851150,13.54130826,1936.0,1935.9,0.60447408]
[1688169859356,13.54130826,1936.0,1935.9,0.31775773]
[1688169859554,13.54130826,1936.0,1935.9,0.60447408]
[1688169862861,13.54130826,1936.0,1935.9,0.70747408]
[1688169863163,6.76551826,1936.2,1936.1,0.103]
[1688169863464,6.76551826,1936.2,1936.1,4.52518047]
[1688169866869,7.07549826,1936.2,1936.1,4.52518047]
[1688169867773,6.76551826,1936.2,1936.1,4.52518047]
[1688169867965,6.76551826,1936.2,1936.1,4.42218047]
[1688169871471,7.54044826,1936.3,1936.1,4.42218047]
[1688169871868,8.47073193,1936.3,1936.1,4.42218047]
[1688169873472,8.47073193,1936.3,1936.1,4.84200875]
[1688169877076,7.69580193,1936.3,1936.1,4.84200875]
[1688169877573,6.76551826,1936.3,1936.1,4.84200875]
[1688169877876,0.93753613,1936.6,1936.1,4.84200875]
[1688169877877,6.77326439,1936.6,1936.5,0.103]
[1688169878072,6.76551826,1936.9,1936.5,10.99092047]
[1688169878375,7.07538826,1936.9,1936.7,3.258]
[1688169878581,8.00533161,1936.9,1936.8,0.30987]
[1688169878763,8.00533161,1936.9,1936.8,0.59658635]
[1688169879277,1.23981335,1936.9,1936.8,0.59658635]
[1688169880777,1.42529041,1936.9,1936.8,0.59658635]
[1688169882166,4.68329041,1936.9,1936.8,0.59658635]
[1688169883472,4.68329041,1936.9,1936.8,0.30987]
[1688169885176,4.68329041,1936.9,1936.8,0.59658635]
[1688169885581,3.75334706,1936.9,1936.8,0.59658635]
[1688169887174,0.49534706,1936.9,1936.8,3.85458635]
[1688169888383,3.75334706,1936.9,1936.8,0.30987]
[1688169888583,3.75334706,1936.9,1936.8,0.59658635]
[1688169892185,0.49534706,1936.9,1936.8,0.59658635]
[1688169902599,3.75334706,1936.9,1936.7,0.40321553]
[1688169902889,3.75334706,1936.9,1936.7,0.30987]
[1688169902890,6.77567,1936.8,1936.7,0.30987]
[1688169903397,6.94872712,1936.8,1936.7,0.30987]
[1688169906094,3.38085712,1936.8,1936.7,0.59658635]
[1688169906300,3.69071712,1936.8,1936.7,0.59658635]
[1688169907892,6.94871712,1936.8,1936.6,0.77471]
[1688169908586,14.64417873,1936.8,1936.6,0.77471]
[1688169908990,11.38617873,1936.8,1936.6,4.88191047]
[1688169909189,4.62066047,1936.8,1936.6,4.88191047]
[1688169912102,7.87866047,1936.8,1936.6,4.88191047]
[1688169913205,14.64417873,1936.8,1936.6,4.88191047]
[1688169914306,14.64417873,1936.8,1936.6,4.02771]
[1688169914903,14.64417873,1936.8,1936.6,4.31442635]
[1688169916108,14.64417873,1936.8,1936.6,4.02771]
[1688169916404,3.258,1936.7,1936.6,0.77471]
[1688169916601,3.56788,1936.7,1936.6,0.77471]
[1688169916812,3.71263081,1936.7,1936.6,0.77471]
[1688169916999,10.47814907,1936.7,1936.6,0.77471]
[1688169918909,7.22014907,1936.7,1936.6,0.77471]
[1688169919714,7.22014907,1936.7,1936.5,3.56789]
[1688169920013,6.4658,1936.6,1936.5,0.30991]
[1688169920204,6.77569,1936.6,1936.5,0.30991]
[1688169920508,7.85051076,1936.6,1936.5,0.30991]
[1688169920712,6.92056741,1936.6,1936.5,0.30991]
[1688169921714,3.66256741,1936.6,1936.5,0.59662635]
[1688169922211,3.66256741,1936.6,1936.5,3.84962635]
[1688169922412,10.43071509,1936.6,1936.5,3.84962635]
[1688169922712,11.36065844,1936.6,1936.5,3.84962635]
[1688169922914,4.59251076,1936.6,1936.5,3.84962635]
[1688169923115,3.66256741,1936.6,1936.5,3.84962635]
[1688169927615,7.22583728,1936.6,1936.5,3.84962635]
[1688169929318,7.22583728,1936.6,1936.5,3.95262635]
[1688169929518,7.22583728,1936.6,1936.5,3.95762635]
[1688169929925,0.45476741,1936.6,1936.5,3.95762635]
[1688169930522,7.22583728,1936.6,1936.5,3.56791]
[1688169930727,13.69163728,1936.6,1936.5,0.30991]
[1688169931123,6.92056741,1936.6,1936.5,0.30991]
[1688169931627,7.85051076,1936.6,1936.5,0.30991]
[1688169932929,7.85051076,1936.6,1936.3,4.03283]
[1688169933228,0.30992,1936.4,1936.3,4.60031412]
[1688169933416,7.54607722,1936.5,1936.3,4.88703047]
[1688169933722,0.14535593,1936.4,1936.3,4.88703047]
[1688169934432,0.45527593,1936.4,1936.3,4.88703047]
[1688169937925,0.14535593,1936.4,1936.3,4.88703047]
[1688169939628,0.14535593,1936.4,1936.3,4.99003047]
[1688169940129,0.7748,1936.6,1936.3,8.19783047]
[1688169940334,0.7748,1936.6,1936.5,3.258]
[1688169940536,0.7748,1936.6,1936.5,3.56791]
[1688169940836,7.54606722,1936.6,1936.5,3.56791]
[1688169942337,7.54606722,1936.6,1936.5,0.30991]
[1688169948041,0.7748,1936.6,1936.5,0.30991]
[1688169949146,4.0328,1936.6,1936.3,0.77483]
[1688169949331,4.0328,1936.6,1935.9,0.00774773]
[1688169949332,6.4658,1936.4,1935.9,0.00774773]
[1688169949637,10.03379,1936.0,1935.6,0.77507]
[1688169949838,6.77584,1935.7,1935.6,0.77507]
[1688169950842,13.55278764,1935.7,1935.6,0.31005]
[1688169951445,6.77584,1935.7,1935.6,0.31005]
[1688169953743,6.77584,1935.7,1935.5,0.78290933]
[1688169953940,3.258,1935.6,1935.5,0.78290933]
[1688169954136,3.56804,1935.6,1935.5,0.78290933]
[1688169955644,3.56804,1935.6,1935.5,0.94604669]
[1688169959850,3.56804,1935.6,1935.5,1.23276304]
[1688169960039,4.03311,1935.7,1935.5,1.23276304]
[1688169960448,4.03311,1935.7,1935.6,0.56748412]
[1688169960746,3.258,1935.7,1935.6,0.87752412]
[1688169960948,0.31775933,1935.8,1935.6,4.29847777]
[1688169961151,0.31775933,1935.8,1935.7,0.28671635]
[1688169961342,0.31775933,1935.8,1935.7,0.59674635]
[1688169962551,0.31775933,1935.8,1935.7,0.31003]
[1688169962748,3.57575933,1935.8,1935.6,0.47299365]
[1688169962942,3.57575933,1935.8,1935.7,0.31003]
[1688169963147,3.57575933,1935.8,1935.6,0.47299365]
[1688169963550,3.2078,1935.7,1935.6,0.47299365]
[1688169963745,3.51782,1935.7,1935.6,0.47299365]
[1688169965046,6.77582,1935.7,1935.6,0.47299365]
[1688169968158,3.56802,1935.7,1935.6,0.75971]
[1688169969562,3.258,1935.7,1935.6,0.75971]
[1688169970060,3.56803,1935.7,1935.6,0.75971]
[1688169972155,0.31003,1935.7,1935.6,0.75971]
[1688169972355,0.00774933,1935.8,1935.7,0.103]
[1688169972557,0.30997,1936.1,1935.7,7.44631412]
[1688169972858,0.30997,1936.1,1936.0,3.56798]
[1688169973464,0.30997,1936.1,1936.0,3.85469635]
[1688169975367,0.78264773,1936.2,1936.0,3.85469635]
[1688169976067,0.78264773,1936.2,1936.1,0.56748412]
[1688169976367,0.31769773,1936.2,1936.1,0.87744412]
[1688169977062,0.00774773,1936.2,1936.1,0.87744412]
[1688169977256,0.00774773,1936.2,1936.1,4.23844412]
[1688169977462,3.258,1936.6,1936.1,7.44624412]
[1688169977663,3.258,1936.6,1936.3,3.258]
[1688169977863,0.06802982,1936.5,1936.4,0.87739412]
[1688169978062,3.258,1936.6,1936.4,0.87739412]
[1688169978063,3.258,1936.6,1936.4,1.16411047]
[1688169978669,3.56788,1936.6,1936.4,1.16411047]
[1688169978971,0.07276744,1936.5,1936.4,4.42211047]
[1688169979275,0.38266744,1936.5,1936.4,4.42211047]
[1688169982767,0.07276744,1936.5,1936.4,4.42211047]
[1688169983565,0.07415805,1936.5,1936.4,4.42211047]
[1688169983772,0.30988,1936.6,1936.4,4.42211047]
[1688169983968,0.30988,1936.6,1936.5,3.5679]
[1688169985374,0.38410031,1936.6,1936.5,3.5679]
[1688169988472,0.07422031,1936.6,1936.5,6.8787]
[1688169988668,0.17973425,1936.6,1936.5,6.8787]
[1688169988869,0.00507689,1936.7,1936.5,6.8787]
[1688169989065,0.00507689,1936.7,1936.6,4.11220047]
[1688169989275,0.00507689,1936.7,1936.6,4.42208047]
[1688169990679,0.00507689,1936.7,1936.6,4.52508047]
[1688169994979,0.00507689,1936.7,1936.6,9.75708047]
[1688169997386,0.00507689,1936.7,1936.6,14.61348047]
[1688169998085,0.00507689,1936.7,1936.6,14.51048047]
[1688170000683,0.16363222,1936.7,1936.6,14.51048047]
[1688170003589,0.16363222,1936.7,1936.6,14.61348047]
[1688170003893,5.0661,1936.9,1936.6,14.61348047]
[1688170004085,5.0661,1936.9,1936.8,3.258]
[1688170004391,5.0661,1936.9,1936.8,4.42205047]
[1688170005687,5.37593,1936.9,1936.8,4.42205047]
[1688170006395,5.0661,1936.9,1936.8,4.42205047]
[1688170011294,5.19246093,1936.9,1936.8,4.42205047]
[1688170016899,5.19246093,1936.9,1936.8,4.82936639]
[1688170021101,5.50229093,1936.9,1936.8,4.26188227]
[1688170021309,5.50229093,1936.9,1936.8,3.97516592]
[1688170021707,5.50229093,1936.9,1936.8,4.26188227]
[1688170024425,5.50229093,1936.9,1936.8,3.97516592]
[1688170026110,5.50229093,1936.9,1936.8,4.26188227]
[1688170026410,5.50229093,1936.9,1936.8,3.97516592]
[1688170026615,11.96809093,1936.9,1936.7,0.00774453]
[1688170026805,17.90685877,1936.9,1936.7,0.00774453]
[1688170027010,10.96481548,1936.8,1936.7,0.00774453]
[1688170027218,11.27466548,1936.8,1936.7,0.00774453]
[1688170027601,4.49771784,1936.8,1936.7,0.00774453]
[1688170031213,1.23971784,1936.8,1936.7,0.60433088]
[1688170031811,0.92986784,1936.8,1936.7,3.86233088]
[1688170032017,6.7693818,1936.8,1936.7,3.86233088]
[1688170032204,6.85211236,1936.8,1936.7,3.86233088]
[1688170032718,0.08273056,1936.8,1936.7,3.86233088]
[1688170033312,11.8354818,1936.9,1936.7,3.86233088]
[1688170033514,0.09473425,1936.8,1936.7,3.86233088]
[1688170033717,6.86411605,1936.8,1936.7,3.86233088]
[1688170033916,6.7693818,1936.8,1936.7,3.86233088]
[1688170034120,6.86414226,1936.8,1936.7,4.429815]
[1688170036618,0.09476046,1936.8,1936.7,4.429815]
[1688170036818,12.56821806,1936.9,1936.7,4.429815]
[1688170037118,6.86425095,1936.8,1936.7,4.429815]
[1688170037522,0.09486915,1936.8,1936.7,4.429815]
[1688170037918,12.56821806,1936.9,1936.7,4.429815]
[1688170038118,6.86428713,1936.8,1936.7,4.429815]
[1688170039025,6.86428713,1936.8,1936.7,7.740615]
[1688170039230,0.1188452,1936.8,1936.7,7.740615]
[1688170039727,0.42289626,1936.9,1936.7,7.740615]
[1688170039913,0.14276207,1936.8,1936.7,4.482615]
[1688170040118,6.7693818,1937.0,1936.7,7.740615]
[1688170040422,6.7693818,1937.0,1936.9,3.258]
[1688170040618,6.7693818,1937.0,1936.9,3.85454635]
[1688170040816,7.18781245,1937.0,1936.9,3.85454635]
[1688170041824,7.49763245,1937.0,1936.9,3.85454635]
[1688170042327,7.49763245,1937.0,1936.9,4.42203047]
[1688170042622,6.7693818,1937.0,1936.9,4.42203047]
[1688170044020,7.0792018,1937.0,1936.9,4.42203047]
[1688170044728,6.7693818,1937.0,1936.9,4.42203047]
[1688170045627,6.91235404,1937.0,1936.9,4.42203047]
[1688170046024,7.22217404,1937.0,1936.9,4.42203047]
[1688170049026,6.91235404,1937.0,1936.9,4.42203047]
[1688170049635,0.14297224,1937.0,1936.9,4.42203047]
[1688170051035,0.14297224,1937.0,1936.9,4.8316999]
[1688170054834,0.45279224,1937.0,1936.9,4.8316999]
[1688170056941,0.14297224,1937.0,1936.9,4.8316999]
[1688170058745,0.14297224,1937.0,1936.9,8.0394999]
[1688170059347,13.38025182,1937.2,1936.9,8.0394999]
[1688170059638,13.38025182,1937.2,1937.1,3.5628]
[1688170060238,13.38025182,1937.2,1937.1,3.84951635]
[1688170060542,13.53508275,1937.2,1937.1,3.84951635]
[1688170060744,13.22526275,1937.2,1937.1,3.84951635]
[1688170061943,6.04269877,1937.2,1937.1,3.84951635]
[1688170062133,6.04269877,1937.2,1937.1,7.10751635]
[1688170063345,1.08469877,1937.2,1937.1,7.10751635]
[1688170063541,0.15483093,1937.2,1937.1,7.10751635]
[1688170064147,1.08469877,1937.2,1937.1,7.10751635]
[1688170065947,0.15483093,1937.2,1937.1,7.10751635]
[1688170067457,0.15483093,1937.2,1937.1,10.31531635]
[1688170072154,0.15483093,1937.2,1937.1,7.05731635]
[1688170072751,0.22929698,1937.2,1937.1,7.05731635]
[1688170073543,4.7432,1937.5,1937.1,10.73230138]
[1688170073753,4.7432,1937.5,1937.4,3.56775]
[1688170074054,4.7432,1937.5,1937.4,3.85446635]
[1688170074250,5.67306784,1937.5,1937.4,4.42195047]
[1688170075762,5.84549911,1937.5,1937.4,4.42195047]